fUSD/lending_fUSD_20241221
["ID","MTS","AMOUNT","RATE_DAILY","PERIOD"]
[346176588,1734765063475,-500.0,0.00020545,2]
[346176589,1734765063484,-500.0,0.00020545,2]
[346176590,1734765063493,-500.0,0.00020545,2]
[346176591,1734765063503,-500.0,0.00020545,2]
[346176592,1734765063512,-324.01663537,0.00020545,2]
[346176593,1734765063521,-500.0,0.00020545,2]
[346176594,1734765063531,-316.20256616,0.00020545,2]
[346176595,1734765063542,-500.0,0.00020545,2]
[346176596,1734765063552,-500.0,0.00020545,2]
[346176597,1734765063561,-174.25808883,0.00020545,2]
[346176598,1734765063571,-500.0,0.00020545,2]
[346176599,1734765063585,-500.0,0.00020545,2]
[346176600,1734765063594,-500.0,0.00020545,2]
[346176601,1734765063603,-500.0,0.00020545,2]
[346176602,1734765063613,-500.0,0.00020545,2]
[346176603,1734765063623,-500.0,0.00020545,2]
[346176604,1734765063632,-500.0,0.00020545,2]
[346176605,1734765063643,-500.0,0.00020545,2]
[346176606,1734765063653,-500.0,0.00020545,2]
[346176607,1734765063662,-500.0,0.00020545,2]
[346176608,1734765063671,-500.0,0.00020545,2]
[346176609,1734765063681,-285.88,0.00020545,2]
[346176610,1734765063690,-500.0,0.00020545,2]
[346176611,1734765063699,-500.0,0.00020545,2]
[346176612,1734765063708,-800.63,0.00020545,2]
[346176613,1734765063718,-500.0,0.00020545,2]
[346176614,1734765063727,-500.0,0.00020545,2]
[346176615,1734765063736,-500.0,0.00020545,2]
[346176616,1734765063745,-500.0,0.00020545,2]
[346176617,1734765063755,-557.93,0.00020545,2]
[346176618,1734765063764,-500.0,0.00020545,2]
[346176619,1734765063773,-564.53,0.00020545,2]
[346176620,1734765063783,-1097.94,0.00020545,2]
[346176621,1734765063797,-1312.98,0.00020545,2]
[346176622,1734765063807,-419.79595207,0.00020545,2]
[346176623,1734765063816,-500.0,0.00020545,2]
[346176624,1734765063826,-713.67,0.00020545,2]
[346176625,1734765063835,-545.6,0.00020545,2]
[346176626,1734765063844,-617.61,0.00020545,2]
[346176627,1734765063854,-500.0,0.00020545,2]
[346176628,1734765063864,-1027.31,0.00020545,2]
[346176629,1734765063873,-1228.91,0.00020545,2]
[346176630,1734765063883,-500.0,0.00020545,2]
[346176631,1734765063893,-781.83,0.00020545,2]
[346176632,1734765063903,-500.0,0.00020545,2]
[346176633,1734765063912,-500.0,0.00020545,2]
[346176634,1734765063923,-839.23,0.00020545,2]
[346176635,1734765063933,-514.33574005,0.00020545,2]
[346176636,1734765063943,-514.69805367,0.00020545,2]
[346176637,1734765063953,-529.71,0.00020545,2]
[346176638,1734765063963,-500.0,0.00020545,2]
[346176639,1734765063973,-512.29614347,0.00020545,2]
[346176640,1734765063983,-1178.66,0.00020545,2]
[346176641,1734765063993,-500.0,0.00020545,2]
[346176642,1734765064003,-2429.01,0.00020545,2]
[346176643,1734765064013,-500.0,0.00020545,2]
[346176644,1734765064023,-946.11,0.00020545,2]
[346176645,1734765064033,-205.26899593,0.00020545,2]
[346176646,1734765064044,-510.56128448,0.00020545,2]
[346176647,1734765064053,-500.0,0.00020545,2]
[346176648,1734765064063,-2009.81,0.00020545,2]
[346176649,1734765064074,-505.59764714,0.00020545,2]
[346176650,1734765064084,-500.0,0.00020545,2]
[346176651,1734765064094,-500.0,0.00020545,2]
[346176652,1734765064105,-500.0,0.00020545,2]
[346176653,1734765064117,-832.29,0.00020545,2]
[346176654,1734765064128,-500.0,0.00020545,2]
[346176655,1734765064139,-508.61882484,0.00020545,2]
[346176656,1734765064153,-553.19,0.00020546,2]
[346176657,1734765064166,-540.6,0.00020546,2]
[346176658,1734765064178,-500.0,0.00020546,2]
[346176659,1734765064189,-589.08,0.00020546,2]
[346176660,1734765064201,-500.0,0.00020546,2]
[346176661,1734765064213,-691.96,0.00020546,2]
[346176662,1734765064224,-572.24,0.00020546,2]
[346176663,1734765064235,-711.14,0.00020546,2]
[346176664,1734765064246,-842.2,0.00020546,2]
[346176665,1734765064260,-500.0,0.00020546,2]
[346176666,1734765064272,-928.46,0.00020546,2]
[346176667,1734765064282,-500.0,0.00020546,2]
[346176668,1734765064305,-647.31,0.00020546,2]
[346176669,1734765064317,-509.15270839,0.00020546,2]
[346176670,1734765064329,-921.84,0.00020546,2]
[346176671,1734765064342,-931.6,0.00020546,2]
[346176672,1734765064353,-679.34,0.00020546,2]
[346176673,1734765064365,-621.87,0.00020546,2]
[346176674,1734765064377,-707.66,0.00020546,2]
[346176675,1734765064388,-500.0,0.00020546,2]
[346176676,1734765064400,-1055.71,0.00020546,2]
[346176677,1734765064411,-812.57,0.00020546,2]
[346176678,1734765064426,-1167.67,0.00020546,2]
[346176679,1734765064437,-500.0,0.00020546,2]
[346176680,1734765064448,-505.48,0.00020546,2]
[346176681,1734765064460,-500.0,0.00020546,2]
[346176682,1734765064472,-500.0,0.00020546,2]
[346176683,1734765064483,-500.0,0.00020546,2]
[346176684,1734765064495,-500.0,0.00020546,2]
[346176685,1734765064506,-803.44,0.00020546,2]
[346176686,1734765064517,-588.79,0.00020546,2]
[346176687,1734765064528,-500.0,0.00020546,2]
[346176688,1734765064548,-500.0,0.00020546,2]
[346176689,1734765064563,-500.0,0.00020546,2]
[346176690,1734765064578,-500.0,0.00020546,2]
[346176691,1734765064592,-520.04,0.00020547,2]
[346176692,1734765064603,-500.0,0.00020547,2]
[346176693,1734765064615,-500.0,0.00020547,2]
[346176694,1734765064626,-500.0,0.00020547,2]
[346176695,1734765064638,-500.0,0.00020547,2]
[346176696,1734765064649,-500.0,0.00020547,2]
[346176697,1734765064660,-500.0,0.00020547,2]
[346176698,1734765064672,-500.0,0.00020547,2]
[346176699,1734765064684,-500.0,0.00020547,2]
[346176700,1734765064695,-500.0,0.00020547,2]
[346176701,1734765064706,-500.0,0.00020547,2]
[346176702,1734765064717,-500.0,0.00020547,2]
[346176703,1734765064728,-500.0,0.00020547,2]
[346176704,1734765064739,-500.0,0.00020547,2]
[346176705,1734765064750,-500.0,0.00020547,2]
[346176706,1734765064761,-500.0,0.00020547,2]
[346176707,1734765064772,-500.0,0.00020547,2]
[346176708,1734765064784,-617.49,0.00020547,2]
[346176709,1734765064805,-435.11345052,0.00020547,2]
[346176710,1734765064816,-500.0,0.00020547,2]
[346176711,1734765064828,-500.0,0.00020547,2]
[346176712,1734765064840,-500.0,0.00020547,2]
[346176713,1734765064851,-500.0,0.00020547,2]
[346176714,1734765064863,-500.0,0.00020547,2]
[346176715,1734765064874,-500.0,0.00020547,2]
[346176716,1734765064887,-500.0,0.00020547,2]
[346176717,1734765064897,-614.48,0.00020547,2]
[346176718,1734765064908,-500.0,0.00020547,2]
[346176719,1734765064920,-500.0,0.00020547,2]
[346176720,1734765064931,-500.0,0.00020547,2]
[346176721,1734765064942,-153.2232783,0.00020547,2]
[346176722,1734765064953,-500.0,0.00020547,2]
[346176723,1734765064964,-500.0,0.00020547,2]
[346176724,1734765064975,-500.0,0.00020547,2]
[346176725,1734765064988,-500.0,0.00020547,2]
[346176726,1734765065000,-500.0,0.00020547,2]
[346176727,1734765065011,-500.0,0.00020547,2]
[346176728,1734765065022,-500.0,0.00020547,2]
[346176729,1734765065033,-500.0,0.00020547,2]
[346176730,1734765065049,-569.52,0.00020547,2]
[346176731,1734765065059,-500.0,0.00020547,2]
[346176732,1734765065070,-500.0,0.00020547,2]
[346176733,1734765065080,-500.0,0.00020547,2]
[346176734,1734765065091,-500.0,0.00020547,2]
[346176735,1734765065102,-500.0,0.00020547,2]
[346176736,1734765065113,-500.0,0.00020547,2]
[346176737,1734765065123,-521.59,0.00020547,2]
[346176738,1734765065134,-618.79,0.00020547,2]
[346176739,1734765065145,-262.66032718,0.00020547,2]
[346176740,1734765065155,-500.0,0.00020547,2]
[346176741,1734765065165,-500.0,0.00020547,2]
[346176742,1734765065176,-526.53,0.00020547,2]
[346176743,1734765065186,-500.0,0.00020547,2]
[346176744,1734765065196,-500.0,0.00020547,2]
[346176745,1734765065207,-500.0,0.00020547,2]
[346176746,1734765065217,-500.0,0.00020547,2]
[346176747,1734765065226,-500.0,0.00020547,2]
[346176748,1734765065237,-609.6,0.00020547,2]
[346176749,1734765065248,-314.80460535,0.00020547,2]
[346176750,1734765065258,-500.0,0.00020547,2]
[346176751,1734765065269,-500.0,0.00020547,2]
[346176752,1734765065278,-183.44932822,0.00020547,2]
[346176753,1734765065290,-528.4,0.00020547,2]
[346176754,1734765065303,-523.51,0.00020547,2]
[346176755,1734765065313,-529.77637498,0.00020547,2]
[346176756,1734765065323,-500.0,0.00020547,2]
[346176757,1734765065333,-500.0,0.00020547,2]
[346176758,1734765065344,-500.0,0.00020547,2]
[346176759,1734765065354,-500.0,0.00020547,2]
[346176760,1734765065363,-654.57,0.00020547,2]
[346176761,1734765065373,-500.0,0.00020547,2]
[346176762,1734765065383,-500.0,0.00020547,2]
[346176763,1734765065393,-659.53,0.00020547,2]
[346176764,1734765065404,-530.0,0.00020547,2]
[346176765,1734765065414,-567.63,0.00020547,2]
[346176766,1734765065424,-500.0,0.00020547,2]
[346176767,1734765065433,-500.0,0.00020547,2]
[346176768,1734765065443,-591.24,0.00020547,2]
[346176769,1734765065454,-500.0,0.00020547,2]
[346176770,1734765065463,-652.96,0.00020547,2]
[346176771,1734765065473,-500.0,0.00020547,2]
[346176772,1734765065482,-500.0,0.00020547,2]
[346176773,1734765065493,-500.0,0.00020547,2]
[346176774,1734765065502,-586.29,0.00020547,2]
[346176775,1734765065512,-500.0,0.00020547,2]
[346176776,1734765065522,-500.0,0.00020547,2]
[346176777,1734765065532,-500.0,0.00020547,2]
[346176778,1734765065546,-500.0,0.00020547,2]
[346176779,1734765065555,-500.0,0.00020547,2]
[346176780,1734765065564,-500.0,0.00020547,2]
[346176781,1734765065575,-500.0,0.00020547,2]
[346176782,1734765065586,-500.0,0.00020547,2]
[346176783,1734765065596,-500.0,0.00020547,2]
[346176784,1734765065605,-500.0,0.00020547,2]
[346176785,1734765065616,-500.0,0.00020547,2]
[346176786,1734765065625,-500.0,0.00020547,2]
[346176787,1734765065635,-500.0,0.00020547,2]
[346176788,1734765065645,-500.0,0.00020547,2]
[346176789,1734765065655,-500.0,0.00020547,2]
[346176790,1734765065664,-500.0,0.00020547,2]
[346176791,1734765065673,-500.0,0.00020547,2]
[346176792,1734765065682,-500.0,0.00020547,2]
[346176793,1734765065691,-500.0,0.00020547,2]
[346176794,1734765065700,-645.7,0.00020547,2]
[346176795,1734765065710,-500.0,0.00020547,2]
[346176796,1734765065719,-500.0,0.00020547,2]
[346176797,1734765065728,-500.0,0.00020547,2]
[346176798,1734765065738,-500.0,0.00020547,2]
[346176799,1734765065747,-500.0,0.00020547,2]
[346176800,1734765065756,-554.92,0.00020547,2]
[346176801,1734765065765,-1268.03,0.00020547,2]
[346176802,1734765065774,-540.99,0.00020547,2]
[346176803,1734765065783,-1370.66,0.00020547,2]
[346176804,1734765065796,-399.58998903,0.00020547,2]
[346176805,1734765065806,-500.0,0.00020547,2]
[346176806,1734765065815,-500.0,0.00020547,2]
[346176807,1734765065824,-562.67,0.00020547,2]
[346176808,1734765065834,-850.99,0.00020547,2]
[346176809,1734765065844,-602.91,0.00020547,2]
[346176810,1734765065854,-500.0,0.00020547,2]
[346176811,1734765065863,-2360.29,0.00020547,2]
[346176812,1734765065872,-665.96,0.00020547,2]
[346176813,1734765065882,-600.01,0.00020547,2]
[346176814,1734765065891,-500.0,0.00020547,2]
[346176815,1734765065900,-2294.49,0.00020547,2]
[346176816,1734765065909,-500.0,0.00020547,2]
[346176817,1734765065919,-829.63,0.00020547,2]
[346176818,1734765065928,-500.0,0.00020547,2]
[346176819,1734765065938,-613.95,0.00020547,2]
[346176820,1734765065947,-1224.85,0.00020547,2]
[346176821,1734765065957,-956.64,0.00020547,2]
[346176822,1734765065966,-500.0,0.00020547,2]
[346176823,1734765065975,-500.0,0.00020547,2]
[346176824,1734765065985,-1849.46,0.00020547,2]
[346176825,1734765065994,-989.46,0.00020547,2]
[346176826,1734765066004,-500.0,0.00020547,2]
[346176827,1734765066013,-656.77,0.00020547,2]
[346176828,1734765066023,-500.0,0.00020547,2]
[346176829,1734765066032,-500.0,0.00020547,2]
[346176830,1734765066043,-500.0,0.00020547,2]
[346176831,1734765066052,-574.74,0.00020547,2]
[346176832,1734765066062,-500.0,0.00020547,2]
[346176833,1734765066071,-516.88,0.00020547,2]
[346176834,1734765066080,-500.0,0.00020547,2]
[346176835,1734765066089,-696.16,0.00020547,2]
[346176836,1734765066098,-500.0,0.00020547,2]
[346176837,1734765066108,-500.0,0.00020547,2]
[346176838,1734765066117,-500.0,0.00020547,2]
[346176839,1734765066126,-779.16,0.00020547,2]
[346176840,1734765066136,-664.07,0.00020547,2]
[346176841,1734765066145,-500.0,0.00020547,2]
[346176842,1734765066154,-754.41,0.00020547,2]
[346176843,1734765066163,-598.65,0.00020547,2]
[346176844,1734765066173,-500.0,0.00020547,2]
[346176845,1734765066182,-537.46,0.00020547,2]
[346176846,1734765066192,-500.0,0.00020547,2]
[346176847,1734765066201,-500.0,0.00020547,2]
[346176848,1734765066212,-1040.23,0.00020547,2]
[346176849,1734765066222,-550.54,0.00020547,2]
[346176850,1734765066231,-609.74,0.00020547,2]
[346176851,1734765066241,-1545.76,0.00020547,2]
[346176852,1734765066251,-2251.73,0.00020547,2]
[346176853,1734765066261,-500.0,0.00020547,2]
[346176854,1734765066270,-500.0,0.00020547,2]
[346176855,1734765066280,-500.0,0.00020547,2]
[346176856,1734765066290,-667.89,0.00020547,2]
[346176857,1734765066300,-858.31,0.00020547,2]
[346176858,1734765066310,-910.96,0.00020547,2]
[346176859,1734765066320,-525.83,0.00020547,2]
[346176860,1734765066329,-675.58,0.00020547,2]
[346176861,1734765066339,-1257.52,0.00020547,2]
[346176862,1734765066348,-691.15,0.00020547,2]
[346176863,1734765066358,-500.0,0.00020547,2]
[346176864,1734765066367,-588.56,0.00020547,2]
[346176865,1734765066376,-535.87,0.00020547,2]
[346176866,1734765066386,-1844.44,0.00020547,2]
[346176867,1734765066396,-1112.66,0.00020547,2]
[346176868,1734765066407,-500.0,0.00020547,2]
[346176869,1734765066416,-3778.3,0.00020547,2]
[346176870,1734765066426,-743.81,0.00020547,2]
[346176871,1734765066436,-763.06,0.00020547,2]
[346176872,1734765066445,-500.0,0.00020547,2]
[346176873,1734765066454,-971.73,0.00020547,2]
[346176874,1734765066464,-2008.55,0.00020547,2]
[346176875,1734765066474,-500.0,0.00020547,2]
[346176876,1734765066484,-500.0,0.00020547,2]
[346176877,1734765066494,-695.31,0.00020547,2]
[346176878,1734765066504,-4156.22,0.00020547,2]
[346176879,1734765066514,-545.8,0.00020547,2]
[346176880,1734765066524,-500.0,0.00020547,2]
[346176881,1734765066534,-1066.88,0.00020547,2]
[346176882,1734765066546,-8814.31,0.00020547,2]
[346176883,1734765066555,-641.57,0.00020547,2]
[346176884,1734765066565,-500.0,0.00020547,2]
[346176885,1734765066577,-1201.21,0.00020547,2]
[346176886,1734765066587,-1027.94,0.00020547,2]
[346176887,1734765066598,-2074.99,0.00020547,2]
[346176888,1734765066607,-986.58,0.00020547,2]
[346176889,1734765066618,-832.32,0.00020547,2]
[346176890,1734765066628,-649.16,0.00020547,2]
[346176891,1734765066638,-892.74,0.00020547,2]
[346176892,1734765066648,-594.18,0.00020547,2]
[346176893,1734765066658,-500.0,0.00020547,2]
[346176894,1734765066668,-1670.61,0.00020547,2]
[346176895,1734765066678,-679.53,0.00020547,2]
[346176896,1734765066687,-922.69,0.00020547,2]
[346176897,1734765066698,-850.92,0.00020547,2]
[346176898,1734765066708,-500.0,0.00020547,2]
[346176899,1734765066718,-2604.91,0.00020547,2]
[346176900,1734765066728,-679.02,0.00020547,2]
[346176901,1734765066738,-500.0,0.00020547,2]
[346176902,1734765066747,-639.51,0.00020547,2]
[346176903,1734765066757,-597.41,0.00020547,2]
[346176904,1734765066767,-539.08,0.00020547,2]
[346176905,1734765066776,-936.04,0.00020547,2]
[346176906,1734765066786,-230.17,0.00020547,2]
[346176907,1734765066800,-500.0,0.00020547,2]
[346176908,1734765066810,-667.52,0.00020547,2]
[346176909,1734765066820,-1171.35,0.00020547,2]
[346176910,1734765066830,-500.0,0.00020547,2]
[346176911,1734765066840,-500.0,0.00020547,2]
[346176912,1734765066850,-500.0,0.00020547,2]
[346176913,1734765066860,-693.7,0.00020547,2]
[346176914,1734765066870,-828.43,0.00020547,2]
[346176915,1734765066880,-572.81,0.00020547,2]
[346176916,1734765066891,-1349.96,0.00020547,2]
[346176917,1734765066901,-4988.53,0.00020547,2]
[346176918,1734765066911,-500.0,0.00020547,2]
[346176919,1734765066921,-903.09,0.00020547,2]
[346176920,1734765066931,-1611.49,0.00020547,2]
[346176921,1734765066941,-880.44,0.00020547,2]
[346176922,1734765066951,-500.0,0.00020547,2]
[346176923,1734765066960,-500.0,0.00020614,2]
[346176924,1734765066970,-700.0,0.00020614,2]
[346176925,1734765066980,-1000.0,0.00020618,2]
[346176926,1734765066990,-200.0,0.00020628,2]
[346176927,1734765066999,-1000.0,0.00020655,2]
[346176928,1734765067009,-162.7639,0.0002072,2]
[346176929,1734765067019,-500.0,0.00020818,2]
[346176930,1734765067029,-609.12,0.00020818,2]
[346176931,1734765067038,-731.44,0.00020818,2]
[346176932,1734765067055,-500.0,0.00020818,2]
[346176933,1734765067065,-500.0,0.00020818,2]
[346176934,1734765067074,-909.03,0.00020818,2]
[346176935,1734765067084,-1204.118159,0.00020818,2]
[346176936,1734765067094,-742.5,0.00020818,2]
[346176937,1734765067104,-810.145927,0.00020818,2]
[346176938,1734765067114,-534.19,0.00020818,2]
[346176939,1734765067124,-1459.91,0.00020818,2]
[346176940,1734765067134,-987.03,0.00020818,2]
[346176941,1734765067144,-1080.78,0.00020818,2]
[346176942,1734765067154,-167.353892,0.00020818,2]
[346176943,1734765067164,-500.0,0.00020818,2]
[346176944,1734765067174,-907.79,0.00020818,2]
[346176945,1734765067184,-5648.75,0.00020818,2]
[346176946,1734765067193,-1707.55,0.00020818,2]
[346176947,1734765067203,-500.0,0.00020818,2]
[346176948,1734765067212,-555.06,0.00020818,2]
[346176949,1734765067224,-4690.0,0.00020818,2]
[346176950,1734765067233,-500.0,0.00020819,2]
[346176951,1734765067243,-500.0,0.00020819,2]
[346176952,1734765067253,-500.0,0.00020819,2]
[346176953,1734765067263,-500.0,0.00020819,2]
[346176954,1734765067272,-500.0,0.00020819,2]
[346176955,1734765067282,-500.0,0.00020819,2]
[346176956,1734765067294,-500.0,0.00020819,2]
[346176957,1734765067303,-500.0,0.00020819,2]
[346176958,1734765067313,-500.0,0.00020819,2]
[346176959,1734765067323,-500.0,0.00020819,2]
[346176960,1734765067333,-500.0,0.00020819,2]
[346176961,1734765067342,-500.0,0.00020819,2]
[346176962,1734765067352,-500.0,0.00020819,2]
[346176963,1734765067362,-500.0,0.00020819,2]
[346176964,1734765067372,-500.0,0.00020819,2]
[346176965,1734765067382,-500.0,0.00020819,2]
[346176966,1734765067392,-500.0,0.00020819,2]
[346176967,1734765067402,-500.0,0.00020819,2]
[346176968,1734765067413,-500.0,0.00020819,2]
[346176969,1734765067424,-500.0,0.00020819,2]
[346176970,1734765067434,-500.0,0.00020819,2]
[346176971,1734765067443,-500.0,0.00020819,2]
[346176972,1734765067453,-500.0,0.00020819,2]
[346176973,1734765067463,-500.0,0.00020819,2]
[346176974,1734765067472,-500.0,0.00020819,2]
[346176975,1734765067482,-500.0,0.00020819,2]
[346176976,1734765067492,-800.63,0.00020819,2]
[346176977,1734765067501,-500.0,0.00020819,2]
[346176978,1734765067512,-500.0,0.00020819,2]
[346176979,1734765067522,-500.0,0.00020819,2]
[346176980,1734765067531,-500.0,0.00020819,2]
[346176981,1734765067541,-557.93,0.00020819,2]
[346176982,1734765067553,-500.0,0.00020819,2]
[346176983,1734765067563,-564.53,0.00020819,2]
[346176984,1734765067573,-1097.94,0.00020819,2]
[346176985,1734765067583,-1312.98,0.00020819,2]
[346176986,1734765067593,-538.79283494,0.00020819,2]
[346176987,1734765067604,-713.67,0.00020819,2]
[346176988,1734765067614,-545.6,0.00020819,2]
[346176989,1734765067626,-617.61,0.00020819,2]
[346176990,1734765067636,-500.0,0.00020819,2]
[346176991,1734765067646,-1027.31,0.00020819,2]
[346176992,1734765067656,-500.0,0.00020819,2]
[346176993,1734765067666,-781.83,0.00020819,2]
[346176994,1734765067677,-500.0,0.00020819,2]
[346176995,1734765067687,-500.0,0.00020819,2]
[346176996,1734765067696,-839.23,0.00020819,2]
[346176997,1734765067706,-500.0,0.00020819,2]
[346176998,1734765067717,-529.71,0.00020819,2]
[346176999,1734765067727,-1178.66,0.00020819,2]
[346177000,1734765067737,-472.01967867,0.00020819,2]
[346177001,1734765067746,-2429.01,0.00020819,2]
[346177002,1734765067755,-500.0,0.00020819,2]
[346177003,1734765067765,-946.11,0.00020819,2]
[346177004,1734765067775,-500.0,0.00020819,2]
[346177005,1734765067784,-2009.81,0.00020819,2]
[346177006,1734765067797,-500.0,0.00020819,2]
[346177007,1734765067807,-500.0,0.00020819,2]
[346177008,1734765067817,-378.27489153,0.00020819,2]
[346177009,1734765067827,-832.29,0.00020819,2]
[346177010,1734765067836,-500.0,0.00020819,2]
[346177011,1734765067845,-553.19,0.0002082,2]
[346177012,1734765067855,-540.6,0.0002082,2]
[346177013,1734765067864,-500.0,0.0002082,2]
[346177014,1734765067874,-589.08,0.0002082,2]
[346177015,1734765067885,-586.92684997,0.0002082,2]
[346177016,1734765067894,-691.96,0.0002082,2]
[346177017,1734765067905,-572.24,0.0002082,2]
[346177018,1734765067915,-711.14,0.0002082,2]
[346177019,1734765067926,-842.2,0.0002082,2]
[346177020,1734765067936,-500.0,0.0002082,2]
[346177021,1734765067947,-928.46,0.0002082,2]
[346177022,1734765067958,-500.0,0.0002082,2]
[346177023,1734765067968,-647.31,0.0002082,2]
[346177024,1734765067978,-921.84,0.0002082,2]
[346177025,1734765067988,-931.6,0.0002082,2]
[346177026,1734765067999,-679.34,0.0002082,2]
[346177027,1734765068009,-621.87,0.0002082,2]
[346177028,1734765068019,-707.66,0.0002082,2]
[346177029,1734765068030,-500.0,0.0002082,2]
[346177030,1734765068040,-1055.71,0.0002082,2]
[346177031,1734765068054,-812.57,0.0002082,2]
[346177032,1734765068065,-1167.67,0.0002082,2]
[346177033,1734765068075,-500.0,0.0002082,2]
[346177034,1734765068085,-505.48,0.0002082,2]
[346177035,1734765068095,-500.0,0.0002082,2]
[346177036,1734765068105,-500.0,0.0002082,2]
[346177037,1734765068116,-500.0,0.0002082,2]
[346177038,1734765068126,-803.44,0.0002082,2]
[346177039,1734765068136,-1228.91,0.0002082,2]
[346177040,1734765068145,-1228.91,0.0002082,2]
[346177041,1734765068155,-1228.91,0.0002082,2]
[346177042,1734765068166,-1228.91,0.0002082,2]
[346177043,1734765068175,-1229.02438031,0.0002082,2]
[346177044,1734765068185,-588.79,0.0002082,2]
[346177045,1734765068195,-500.0,0.0002082,2]
[346177046,1734765068205,-500.0,0.0002082,2]
[346177047,1734765068215,-500.0,0.0002082,2]
[346177048,1734765068226,-500.0,0.0002082,2]
[346177049,1734765068236,-520.04,0.00020821,2]
[346177050,1734765068246,-500.0,0.00020821,2]
[346177051,1734765068256,-500.0,0.00020821,2]
[346177052,1734765068266,-500.0,0.00020821,2]
[346177053,1734765068276,-500.0,0.00020821,2]
[346177054,1734765068286,-500.0,0.00020821,2]
[346177055,1734765068300,-500.0,0.00020821,2]
[346177056,1734765068313,-500.0,0.00020821,2]
[346177057,1734765068323,-500.0,0.00020821,2]
[346177058,1734765068333,-500.0,0.00020821,2]
[346177059,1734765068343,-500.0,0.00020821,2]
[346177060,1734765068353,-500.0,0.00020821,2]
[346177061,1734765068363,-500.0,0.00020821,2]
[346177062,1734765068374,-500.0,0.00020821,2]
[346177063,1734765068588,-500.0,0.00020821,2]
[346177064,1734765068608,-500.0,0.00020821,2]
[346177065,1734765068618,-500.0,0.00020821,2]
[346177066,1734765068630,-617.49,0.00020821,2]
[346177067,1734765068640,-500.0,0.00020821,2]
[346177068,1734765068649,-500.0,0.00020821,2]
[346177069,1734765068658,-500.0,0.00020821,2]
[346177070,1734765068668,-500.0,0.00020821,2]
[346177071,1734765068677,-500.0,0.00020821,2]
[346177072,1734765068687,-500.0,0.00020821,2]
[346177073,1734765068697,-500.0,0.00020821,2]
[346177074,1734765068707,-614.48,0.00020821,2]
[346177075,1734765068716,-500.0,0.00020821,2]
[346177076,1734765068726,-500.0,0.00020821,2]
[346177077,1734765068736,-500.0,0.00020821,2]
[346177078,1734765068745,-500.0,0.00020821,2]
[346177079,1734765068755,-500.0,0.00020821,2]
[346177080,1734765068764,-500.0,0.00020821,2]
[346177081,1734765068775,-500.0,0.00020821,2]
[346177082,1734765068785,-500.0,0.00020821,2]
[346177083,1734765068796,-500.0,0.00020821,2]
[346177084,1734765068806,-522.10785742,0.00020821,2]
[346177085,1734765068815,-500.0,0.00020821,2]
[346177086,1734765068825,-569.52,0.00020821,2]
[346177087,1734765068835,-500.0,0.00020821,2]